[Event "25th Abu Dhabi Master 2018"]
[Site "Abu Dhabi"]
[Date "2018.08.08"]
[Round "2"]
[White "Sjugirov, Sanan"]
[Black "Daneshvar, Bardiya"]
[Result "1-0"]
[ECO "B12"]
[WhiteElo "2677"]
[BlackElo "2290"]
[Annotator "RC"]
[PlyCount "59"]
[EventDate "2018.08.05"]
[EventType "swiss"]
[EventCountry "UAE"]
[SourceTitle "playchess.com"]
[Source "ChessBase"]
[SourceQuality "1"]
[TimeControl "5400+30"]

1. e4 c6 2. d4 d5 3. e5 Bf5 4. Nf3 e6 5. Be2 Nd7 6. O-O Ne7 7. Nbd2 {[%emt 0:13:44]} Nc8 {[%emt 0:01:35]} 8. b3 {[%emt 0:00:30]} Be7 {[%emt 0:00:30]} 9. c4 {[%emt 0:01:43]} O-O {[%emt 0:00:37]} 10. Bb2 {[%emt 0:01:00]} a6 {[%emt 0:06:36]} 11. a3 {[%emt 0:03:24]} dxc4 {[%emt 0:06:19]} 12. bxc4 {[%emt 0:03:27]} b5 {[%emt 0:01:33]} 13. d5 {[%emt 0:09:22]} cxd5 {[%emt 0:04:38]} 14. cxd5 {[%emt 0:00:32]} exd5 {[%emt 0:00:12]} 15. Nd4 {[%emt 0:00:08]} Bg6 {[%emt 0:06:56]} 16. f4 {[%emt 0:00:42]} f5 {[%emt 0:09:52]} 17. N2b3 {[%emt 0:02:42]} Qb6 {[%emt 0:10:44]} 18. Bf3 {[%emt 0:01:19]} Kh8 {[%emt 0:12:15]} 19. Bxd5 {[%emt 0:00:56]} Ra7 {[%emt 0:00:03]} 20. Kh1 {[%emt 0:00:32]} Nc5 {[%emt 0:02:48]} 21. Nxc5 {[%emt 0:01:33]} Bxc5 {[%emt 0:02:09]} 22. Ne6 {[%emt 0:01:05]} Re8 {[%emt 0:00:10]} 23. Rc1 {[%emt 0:04:43]} Be3 {[%emt 0:01:03]} 24. Rc6 {[%emt 0:01:08]} Qb8 {[%emt 0:00:15]} 25. Bb3 {[%emt 0:00:52]} Bb6 {[%emt 0:02:54]} 26. Ng5 {[%emt 0:04:30]} Ne7 {[%emt 0:00:25]} 27. Rxg6 {[%emt 0:02:22]} hxg6 {[%emt 0:01:14]} 28. Qf3 {[%emt 0:01:48]} Ng8 {[%emt 0:00:16]} 29. Qh3+ {[%emt 0:00:15]} Nh6 {[%emt 0:00:07]} 30. e6 {[%emt 0:00:06]} 1-0

[Event "25th Abu Dhabi Master 2018"]
[Site "Abu Dhabi"]
[Date "2018.08.08"]
[Round "2"]
[White "Adly, Ahmed"]
[Black "Sadhwani, Raunak"]
[Result "1/2-1/2"]
[ECO "A05"]
[WhiteElo "2634"]
[BlackElo "2424"]
[Annotator "RC"]
[PlyCount "138"]
[EventDate "2018.08.05"]
[EventType "swiss"]
[EventCountry "UAE"]
[SourceTitle "playchess.com"]
[Source "ChessBase"]
[SourceQuality "1"]
[TimeControl "5400+30"]

1. Nf3 {[%emt 0:00:07]} Nf6 {[%emt 0:00:00]} 2. g3 {[%emt 0:00:38]} g6 {[%emt 0:00:00]} 3. Bg2 {[%emt 0:00:04]} Bg7 {[%emt 0:00:00]} 4. c4 {[%emt 0:00:03]} O-O {[%emt 0:00:04]} 5. d4 {[%emt 0:00:02]} c5 {[%emt 0:00:09]} 6. O-O {[%emt 0:00:26]} cxd4 {[%emt 0:00:10]} 7. Nxd4 {[%emt 0:00:03]} Nc6 {[%emt 0:00:07]} 8. Nc3 {[%emt 0:00:08]} Qa5 {[%emt 0:00:05]} 9. Nb3 {[%emt 0:00:22]} Qh5 {[%emt 0:00:06]} 10. Nd5 {[%emt 0:01:12]} d6 {[%emt 0:15:06]} 11. Nf4 {[%emt 0:02:45]} Qf5 {[%emt 0:02:19]} 12. h3 {[%emt 0:07:09]} Qd7 {[%emt 0:04:50]} 13. Be3 {[%emt 0:12:24]} b6 {[%emt 0:04:11]} 14. Nd3 {[%emt 0:13:49]} Bb7 {[%emt 0:01:18]} 15. c5 {[%emt 0:00:06]} Nd8 {[%emt 0:19:39]} 16. cxd6 {[%emt 0:04:01]} Bxg2 {[%emt 0:00:14]} 17. Kxg2 {[%emt 0:00:02]} Qxd6 {[%emt 0:00:06]} 18. Rc1 {[%emt 0:00:26]} Ne6 {[%emt 0:07:16]} 19. Qc2 {[%emt 0:02:03]} Qd7 {[%emt 0:02:48]} 20. Ne5 {[%emt 0:00:39]} Qd5+ {[%emt 0:00:10]} 21. Nf3 {[%emt 0:00:04]} Qb7 {[%emt 0:00:08]} 22. Qc6 {[%emt 0:01:19]} Qxc6 {[%emt 0:00:22]} 23. Rxc6 {[%emt 0:00:03]} Nd5 {[%emt 0:00:11]} 24. Bd4 {[%emt 0:00:12]} Rfc8 {[%emt 0:09:15]} 25. Rfc1 {[%emt 0:01:00]} Rxc6 {[%emt 0:00:06]} 26. Rxc6 {[%emt 0:00:04]} Nxd4 {[%emt 0:06:37]} 27. Nfxd4 {[%emt 0:01:59]} e5 {[%emt 0:05:41]} 28. Nb5 {[%emt 0:03:25]} a6 {[%emt 0:07:57]} 29. Nd6 {[%emt 0:02:12]} e4 {[%emt 0:07:51]} 30. Nxe4 {[%emt 0:07:59]} Bxb2 {[%emt 0:00:04]} 31. Rd6 {[%emt 0:00:08]} Nb4 {[%emt 0:02:18]} 32. Rxb6 {[%emt 0:00:16]} Nxa2 {[%emt 0:00:05]} 33. Nbc5 {[%emt 0:00:35]} Bd4 {[%emt 0:02:28]} 34. Rxa6 {[%emt 0:00:04]} Rxa6 {[%emt 0:00:04]} 35. Nxa6 {[%emt 0:00:06]} Nc3 {[%emt 0:00:06]} 36. e3 {[%emt 0:03:08]} Nxe4 {[%emt 0:01:00]} 37. exd4 {[%emt 0:00:01]} Kf8 {[%emt 0:00:18]} 38. Kf1 {[%emt 0:01:20]} Ke7 {[%emt 0:00:32]} 39. Ke2 {[%emt 0:00:08]} Kd6 {[%emt 0:00:49]} 40. Nb4 {[%emt 0:00:08]} Nc3+ {[%emt 0:01:04]} 41. Kd2 {[%emt 0:00:22]} Ne4+ {[%emt 0:00:22]} 42. Ke3 {[%emt 0:00:03]} Nc3 {[%emt 0:00:04]} 43. h4 {[%emt 0:01:02]} f6 {[%emt 0:00:53]} 44. f3 {[%emt 0:00:25]} Nb5 {[%emt 0:01:57]} 45. Kd3 {[%emt 0:00:35]} Nc7 {[%emt 0:01:48]} 46. Kc4 {[%emt 0:01:01]} Ne8 {[%emt 0:00:03]} 47. Nd5 {[%emt 0:00:29]} Kc6 {[%emt 0:00:11]} 48. Ne3 {[%emt 0:00:15]} Nd6+ {[%emt 0:00:02]} 49. Kd3 {[%emt 0:00:07]} Kd7 {[%emt 0:00:26]} 50. d5 {[%emt 0:00:14]} h5 {[%emt 0:00:47]} 51. Kd4 {[%emt 0:00:22]} Nb5+ {[%emt 0:00:29]} 52. Kc4 {[%emt 0:00:14]} Nd6+ {[%emt 0:00:32]} 53. Kc5 {[%emt 0:00:03]} g5 {[%emt 0:00:06]} 54. Kd4 {[%emt 0:00:56]} Nb5+ {[%emt 0:00:16]} 55. Kd3 {[%emt 0:00:29]} Nd6 {[%emt 0:00:31]} 56. Ke2 {[%emt 0:03:55]} Kc7 {[%emt 0:00:17]} 57. Kd3 {[%emt 0:05:55]} Kd7 {[%emt 0:00:05]} 58. hxg5 {[%emt 0:00:07]} fxg5 {[%emt 0:00:01]} 59. g4 {[%emt 0:00:04]} h4 {[%emt 0:01:18]} 60. Nd1 {[%emt 0:01:12]} h3 {[%emt 0:01:14]} 61. Nf2 {[%emt 0:00:14]} h2 {[%emt 0:00:05]} 62. Nh1 {[%emt 0:00:39]} Nf7 {[%emt 0:01:11]} 63. Ke3 {[%emt 0:05:19]} Kd6 {[%emt 0:00:14]} 64. Kf2 {[%emt 0:00:08]} Kxd5 {[%emt 0:00:08]} 65. Kg2 {[%emt 0:00:07]} Ne5 {[%emt 0:00:33]} 66. Nf2 {[%emt 0:00:26]} Kd4 {[%emt 0:00:25]} 67. Nh3 {[%emt 0:00:08]} Nxf3 {[%emt 0:00:09]} 68. Nxg5 {[%emt 0:00:05]} Nxg5 {[%emt 0:00:03]} 69. Kxh2 {[%emt 0:00:04]} Ke5 1/2-1/2

[Event "25th Abu Dhabi Master 2018"]
[Site "Abu Dhabi"]
[Date "2018.08.08"]
[Round "2"]
[White "Tabatabai, M Amin"]
[Black "Gajwa, Ankit"]
[Result "1/2-1/2"]
[ECO "E71"]
[WhiteElo "2590"]
[BlackElo "2223"]
[Annotator "ChessBase"]
[PlyCount "161"]
[EventDate "2018.08.05"]
[EventType "swiss"]
[EventCountry "UAE"]
[SourceTitle "playchess.com"]
[Source "ChessBase"]
[SourceQuality "1"]
[TimeControl "5400+30"]

1. d4 {[%emt 0:00:00]} Nf6 {[%emt 0:00:00]} 2. c4 {[%emt 0:00:00]} g6 {[%emt 0:00:00]} 3. Nc3 {[%emt 0:00:01]} Bg7 {[%emt 0:00:00]} 4. e4 {[%emt 0:00:03]} d6 {[%emt 0:00:00]} 5. h3 {[%emt 0:00:05]} O-O {[%emt 0:00:03]} 6. Be3 {[%emt 0:00:03]} c5 {[%emt 0:00:27]} 7. Nf3 {[%emt 0:00:07]} cxd4 {[%emt 0:00:50]} 8. Nxd4 {[%emt 0:00:06]} b6 {[%emt 0:00:19]} 9. Qd2 {[%emt 0:00:14]} Bb7 {[%emt 0:00:24]} 10. f3 {[%emt 0:00:12]} Nbd7 {[%emt 0:00:55]} 11. O-O-O {[%emt 0:00:13]} a6 {[%emt 0:08:21]} 12. Kb1 {[%emt 0:00:59]} b5 {[%emt 0:09:15]} 13. cxb5 {[%emt 0:03:46]} axb5 {[%emt 0:02:02]} 14. Bxb5 {[%emt 0:00:12]} Ne5 {[%emt 0:01:44]} 15. Qe2 {[%emt 0:15:11]} Qb8 {[%emt 0:15:56]} 16. Rc1 {[%emt 0:05:55]} Rc8 {[%emt 0:03:43]} 17. Rhd1 {[%emt 0:01:52]} d5 {[%emt 0:10:58]} 18. f4 {[%emt 0:03:24]} Nc4 {[%emt 0:07:28]} 19. e5 {[%emt 0:00:45]} Ne8 {[%emt 0:03:31]} 20. Bf2 {[%emt 0:30:27]} Nc7 {[%emt 0:04:45]} 21. Bxc4 {[%emt 0:02:22]} dxc4 {[%emt 0:00:07]} 22. f5 {[%emt 0:01:52]} Nd5 {[%emt 0:11:10]} 23. Bg3 {[%emt 0:19:57]} Qa7 {[%emt 0:03:57]} 24. a3 {[%emt 0:02:54]} Qb6 {[%emt 0:01:40]} 25. Nxd5 {[%emt 0:01:15]} Bxd5 {[%emt 0:00:12]} 26. Rc3 {[%emt 0:00:01]} Rab8 {[%emt 0:03:47]} 27. Bf2 {[%emt 0:02:58]} Be4+ {[%emt 0:02:30]} 28. Ka1 {[%emt 0:00:49]} Bd3 {[%emt 0:01:26]} 29. Rdxd3 {[%emt 0:02:39]} cxd3 {[%emt 0:00:08]} 30. Rxd3 {[%emt 0:00:00]} Bxe5 {[%emt 0:01:32]} 31. Nb3 {[%emt 0:00:16]} Qc7 {[%emt 0:02:23]} 32. fxg6 {[%emt 0:03:46]} hxg6 {[%emt 0:00:10]} 33. Kb1 {[%emt 0:00:05]} Bf6 {[%emt 0:00:51]} 34. Bg3 {[%emt 0:00:16]} e5 {[%emt 0:01:50]} 35. Re3 {[%emt 0:00:31]} Qd7 {[%emt 0:02:13]} 36. Nd2 {[%emt 0:02:06]} Rd8 {[%emt 0:02:17]} 37. Ne4 {[%emt 0:00:17]} Bg7 {[%emt 0:00:24]} 38. Bh4 {[%emt 0:01:25]} Qd1+ {[%emt 0:00:57]} 39. Ka2 {[%emt 0:00:00]} Qd5+ {[%emt 0:00:29]} 40. Kb1 {[%emt 0:00:00]} Qd1+ {[%emt 0:00:30]} 41. Ka2 {[%emt 0:00:00]} Qd5+ {[%emt 0:00:35]} 42. Kb1 {[%emt 0:00:01]} Qd1+ {[%emt 0:00:39]} 43. Ka2 {[%emt 0:00:01]} Qd5+ {[%emt 0:00:14]} 44. Kb1 {[%emt 0:00:01]} Qd1+ {[%emt 0:00:36]} 45. Ka2 {[%emt 0:00:21]} Qd5+ {[%emt 0:00:35]} 46. Kb1 {[%emt 0:00:13]} Qd1+ {[%emt 0:00:30]} 47. Ka2 {[%emt 0:01:55]} Qd5+ {[%emt 0:00:25]} 48. Kb1 {[%emt 0:00:17]} Qd1+ {[%emt 0:00:26]} 49. Ka2 {[%emt 0:00:01]} Qd5+ {[%emt 0:00:16]} 50. b3 {[%emt 0:01:28]} Rd7 {[%emt 0:00:49]} 51. Bf6 {[%emt 0:01:30]} Qd1 {[%emt 0:00:35]} 52. Qxd1 {[%emt 0:01:15]} Rxd1 {[%emt 0:00:05]} 53. a4 {[%emt 0:00:21]} Bxf6 {[%emt 0:00:53]} 54. Nxf6+ {[%emt 0:00:01]} Kg7 {[%emt 0:00:05]} 55. Ng4 {[%emt 0:00:45]} e4 {[%emt 0:00:30]} 56. Rxe4 {[%emt 0:01:01]} f5 {[%emt 0:00:39]} 57. Re7+ {[%emt 0:00:03]} Kf8 {[%emt 0:00:33]} 58. Rh7 {[%emt 0:00:16]} Rb6 {[%emt 0:00:46]} 59. Ne5 {[%emt 0:00:43]} Kg8 {[%emt 0:00:12]} 60. Re7 {[%emt 0:00:49]} Rd2+ 61. Ka3 Rxg2 {[%emt 0:00:41]} 62. a5 {[%emt 0:00:02]} Rf6 {[%emt 0:01:04]} 63. b4 {[%emt 0:01:30]} Rg3+ {[%emt 0:00:35]} 64. Ka4 {[%emt 0:00:01]} f4 {[%emt 0:00:28]} 65. Ng4 {[%emt 0:00:20]} Rd6 {[%emt 0:00:20]} 66. Nh6+ {[%emt 0:00:15]} Kf8 {[%emt 0:00:29]} 67. Rf7+ {[%emt 0:00:01]} Ke8 {[%emt 0:00:06]} 68. Rxf4 {[%emt 0:00:02]} Rxh3 {[%emt 0:00:28]} 69. Nf7 {[%emt 0:00:34]} Rd5 {[%emt 0:00:26]} 70. a6 {[%emt 0:00:55]} Rh1 {[%emt 0:00:56]} 71. b5 {[%emt 0:00:02]} Ra1+ {[%emt 0:00:43]} 72. Kb4 {[%emt 0:00:00]} Ke7 {[%emt 0:00:33]} 73. Kc4 {[%emt 0:03:34]} Rf5 {[%emt 0:00:31]} 74. Rxf5 {[%emt 0:00:31]} gxf5 {[%emt 0:00:04]} 75. Nh6 {[%emt 0:00:54]} Kd6 {[%emt 0:00:57]} 76. Nxf5+ {[%emt 0:00:10]} Kc7 {[%emt 0:00:23]} 77. Ne7 {[%emt 0:00:46]} Rxa6 {[%emt 0:00:32]} 78. Nd5+ {[%emt 0:00:31]} Kb7 {[%emt 0:00:05]} 79. Kc5 {[%emt 0:00:03]} Ra5 {[%emt 0:00:05]} 80. Nb6 {[%emt 0:00:08]} Rxb5+ {[%emt 0:00:06]} 81. Kxb5 {[%emt 0:00:01]} 1/2-1/2

[Event "25th Abu Dhabi Master 2018"]
[Site "Abu Dhabi"]
[Date "2018.08.08"]
[Round "2"]
[White "Narayanan S L"]
[Black "Krishna Teja, N."]
[Result "1-0"]
[ECO "B12"]
[WhiteElo "2574"]
[BlackElo "2389"]
[Annotator "ChessBase"]
[PlyCount "131"]
[EventDate "2018.08.05"]
[EventType "swiss"]
[EventCountry "UAE"]
[SourceTitle "playchess.com"]
[Source "ChessBase"]
[SourceQuality "1"]
[TimeControl "5400+30"]

1. e4 {[%emt 0:00:00]} c6 2. d4 {[%emt 0:00:05]} d5 {[%emt 0:00:40]} 3. e5 {[%emt 0:00:20]} Bf5 {[%emt 0:00:20]} 4. Nf3 {[%emt 0:00:20]} e6 {[%emt 0:00:12]} 5. Be2 {[%emt 0:00:10]} c5 {[%emt 0:00:08]} 6. Be3 {[%emt 0:00:36]} cxd4 {[%emt 0:00:08]} 7. Nxd4 {[%emt 0:00:11]} Ne7 {[%emt 0:00:05]} 8. Nd2 {[%emt 0:00:21]} Nbc6 {[%emt 0:00:11]} 9. N2f3 {[%emt 0:00:39]} Be4 {[%emt 0:00:14]} 10. O-O {[%emt 0:00:34]} Ng6 {[%emt 0:03:57]} 11. Bb5 {[%emt 0:03:55]} Bxf3 {[%emt 0:04:09]} 12. Qxf3 {[%emt 0:05:24]} Qd7 {[%emt 0:04:18]} 13. Qh5 {[%emt 0:38:05]} a6 {[%emt 0:05:35]} 14. Bxc6 {[%emt 0:01:59]} bxc6 {[%emt 0:00:03]} 15. Rad1 {[%emt 0:05:48]} Rb8 {[%emt 0:25:25]} 16. Nb3 {[%emt 0:07:50]} Be7 {[%emt 0:02:44]} 17. f4 {[%emt 0:00:17]} Nh4 {[%emt 0:02:12]} 18. Qe2 {[%emt 0:05:37]} O-O {[%emt 0:08:14]} 19. Nc5 {[%emt 0:02:25]} Qc8 {[%emt 0:01:38]} 20. c3 {[%emt 0:02:40]} a5 {[%emt 0:06:30]} 21. a4 {[%emt 0:00:34]} f5 {[%emt 0:03:08]} 22. Rb1 {[%emt 0:04:05]} Bxc5 {[%emt 0:03:44]} 23. Bxc5 {[%emt 0:00:04]} Rf7 {[%emt 0:00:04]} 24. b4 {[%emt 0:01:58]} Rfb7 {[%emt 0:00:07]} 25. Qc2 {[%emt 0:04:58]} Ra8 {[%emt 0:02:19]} 26. bxa5 {[%emt 0:00:59]} Rxa5 {[%emt 0:01:07]} 27. Bb6 {[%emt 0:00:06]} Ra6 {[%emt 0:02:35]} 28. a5 {[%emt 0:00:56]} Ng6 {[%emt 0:00:08]} 29. Qf2 {[%emt 0:01:53]} Nf8 {[%emt 0:00:50]} 30. Rb4 {[%emt 0:03:55]} Nd7 {[%emt 0:02:28]} 31. Rfb1 {[%emt 0:00:02]} c5 {[%emt 0:03:14]} 32. Rb5 {[%emt 0:00:46]} Qc6 {[%emt 0:00:09]} 33. h3 {[%emt 0:02:02]} Nxb6 {[%emt 0:05:52]} 34. Qxc5 {[%emt 0:00:22]} Qxc5+ {[%emt 0:00:07]} 35. Rxc5 {[%emt 0:00:04]} Kf7 {[%emt 0:00:28]} 36. Rcb5 {[%emt 0:02:52]} Ke7 {[%emt 0:00:09]} 37. g4 {[%emt 0:00:52]} g6 {[%emt 0:00:18]} 38. Kf2 {[%emt 0:00:35]} Kd7 {[%emt 0:00:08]} 39. gxf5 {[%emt 0:01:30]} gxf5 {[%emt 0:00:08]} 40. Kg3 {[%emt 0:00:08]} Rc7 {[%emt 0:04:51]} 41. axb6 {[%emt 0:00:04]} Rxc3+ {[%emt 0:00:05]} 42. Kh4 {[%emt 0:00:03]} Ra8 {[%emt 0:00:26]} 43. b7 {[%emt 0:00:09]} Rb8 {[%emt 0:00:10]} 44. Rb6 {[%emt 0:00:33]} Rc6 {[%emt 0:00:19]} 45. R6b2 {[%emt 0:02:16]} Rc4 {[%emt 0:01:55]} 46. Rb6 {[%emt 0:01:33]} Rc6 {[%emt 0:02:49]} 47. Kg5 {[%emt 0:00:42]} Rxb6 {[%emt 0:05:16]} 48. Rxb6 {[%emt 0:00:04]} Ke7 {[%emt 0:00:22]} 49. Kh6 {[%emt 0:00:35]} d4 {[%emt 0:00:20]} 50. h4 {[%emt 0:00:57]} d3 {[%emt 0:00:06]} 51. Kxh7 {[%emt 0:00:10]} d2 {[%emt 0:00:11]} 52. Rd6 {[%emt 0:00:04]} Rxb7 {[%emt 0:00:25]} 53. Rxd2 {[%emt 0:00:04]} Rb4 {[%emt 0:00:24]} 54. Rf2 {[%emt 0:00:11]} Kf7 {[%emt 0:00:17]} 55. h5 {[%emt 0:00:05]} Rb1 {[%emt 0:01:36]} 56. h6 {[%emt 0:00:55]} Rg1 {[%emt 0:00:22]} 57. Ra2 {[%emt 0:00:14]} Rg4 {[%emt 0:00:24]} 58. Ra4 {[%emt 0:00:13]} Ke7 {[%emt 0:01:44]} 59. Ra7+ {[%emt 0:02:42]} Kf8 {[%emt 0:00:03]} 60. Rg7 {[%emt 0:00:11]} Rxf4 {[%emt 0:00:10]} 61. Rg6 {[%emt 0:00:18]} Rg4 {[%emt 0:03:13]} 62. Rxe6 {[%emt 0:00:04]} Kf7 {[%emt 0:00:09]} 63. Rf6+ {[%emt 0:00:05]} Ke7 {[%emt 0:00:02]} 64. Rg6 {[%emt 0:00:36]} Kf7 {[%emt 0:00:28]} 65. e6+ {[%emt 0:00:27]} Kf8 {[%emt 0:00:47]} 66. Rxg4 {[%emt 0:00:11]} 1-0

[Event "25th Abu Dhabi Master 2018"]
[Site "Abu Dhabi"]
[Date "2018.08.08"]
[Round "2"]
[White "Yuffa, Daniil"]
[Black "Raetsky, Alexander"]
[Result "1/2-1/2"]
[ECO "A20"]
[WhiteElo "2570"]
[BlackElo "2380"]
[Annotator "ChessBase"]
[PlyCount "38"]
[EventDate "2018.08.05"]
[EventType "swiss"]
[EventCountry "UAE"]
[SourceTitle "playchess.com"]
[Source "ChessBase"]
[SourceQuality "1"]
[TimeControl "5400+30"]

1. c4 {[%emt 0:00:09]} e5 {[%emt 0:00:00]} 2. g3 {[%emt 0:00:14]} Nf6 {[%emt 0:02:16]} 3. Bg2 {[%emt 0:00:11]} c6 {[%emt 0:00:06]} 4. Nf3 {[%emt 0:00:34]} e4 {[%emt 0:01:53]} 5. Nd4 {[%emt 0:00:04]} d5 {[%emt 0:00:20]} 6. cxd5 {[%emt 0:00:25]} Qb6 {[%emt 0:04:48]} 7. Nc2 {[%emt 0:02:12]} cxd5 {[%emt 0:02:42]} 8. d3 {[%emt 0:01:34]} Be7 {[%emt 0:04:04]} 9. Nc3 {[%emt 0:02:30]} O-O {[%emt 0:02:41]} 10. Be3 {[%emt 0:03:02]} Qa5 {[%emt 0:05:34]} 11. O-O {[%emt 0:00:48]} Rd8 {[%emt 0:00:39]} 12. Nd4 {[%emt 0:07:48]} Nc6 {[%emt 0:05:49]} 13. Qb3 {[%emt 0:17:10]} exd3 {[%emt 0:00:30]} 14. exd3 {[%emt 0:00:30]} Ne5 {[%emt 0:00:30]} 15. Rad1 {[%emt 0:00:30]} Bg4 {[%emt 0:00:30]} 16. f3 {[%emt 0:00:30]} Bd7 {[%emt 0:00:30]} 17. g4 {[%emt 0:00:30]} h6 {[%emt 0:00:30]} 18. h3 {[%emt 0:02:13]} Nc6 {[%emt 0:27:30]} 19. Bf2 {[%emt 0:00:30]} Ne5 {[%emt 0:00:30]} 1/2-1/2

[Event "25th Abu Dhabi Master 2018"]
[Site "Abu Dhabi"]
[Date "2018.08.08"]
[Round "2"]
[White "Firouzja, Alireza"]
[Black "Kathmale, Sameer"]
[Result "1-0"]
[ECO "D17"]
[WhiteElo "2561"]
[BlackElo "2367"]
[Annotator "ChessBase"]
[PlyCount "61"]
[EventDate "2018.08.05"]
[EventType "swiss"]
[EventCountry "UAE"]
[SourceTitle "playchess.com"]
[Source "ChessBase"]
[SourceQuality "1"]
[TimeControl "5400+30"]

1. d4 {[%emt 0:00:00]} d5 {[%emt 0:00:00]} 2. Nf3 {[%emt 0:00:00]} Nf6 {[%emt 0:00:03]} 3. c4 {[%emt 0:00:00]} c6 {[%emt 0:00:16]} 4. Nc3 {[%emt 0:00:24]} dxc4 {[%emt 0:01:49]} 5. a4 {[%emt 0:00:08]} Bf5 {[%emt 0:01:51]} 6. Ne5 {[%emt 0:00:08]} e6 {[%emt 0:01:08]} 7. f3 {[%emt 0:00:07]} c5 {[%emt 0:00:56]} 8. e4 {[%emt 0:00:06]} Bg6 {[%emt 0:00:02]} 9. Be3 {[%emt 0:00:07]} cxd4 {[%emt 0:00:57]} 10. Qxd4 {[%emt 0:00:06]} Qxd4 {[%emt 0:00:42]} 11. Bxd4 {[%emt 0:00:07]} a6 {[%emt 0:01:07]} 12. h4 {[%emt 0:07:48]} h6 {[%emt 0:29:26]} 13. Nxg6 {[%emt 0:01:56]} fxg6 {[%emt 0:01:26]} 14. Bxc4 {[%emt 0:00:09]} Nc6 {[%emt 0:00:06]} 15. Be3 {[%emt 0:02:40]} Kf7 {[%emt 0:04:54]} 16. O-O-O {[%emt 0:13:57]} Rc8 {[%emt 0:04:45]} 17. Kb1 {[%emt 0:00:13]} Bb4 {[%emt 0:09:35]} 18. Ne2 {[%emt 0:03:11]} Na5 {[%emt 0:01:58]} 19. Ba2 {[%emt 0:00:14]} Nc4 {[%emt 0:01:02]} 20. Bc1 {[%emt 0:00:20]} Be7 {[%emt 0:10:39]} 21. Nf4 {[%emt 0:05:48]} Rhd8 {[%emt 0:07:59]} 22. Rxd8 {[%emt 0:01:19]} Bxd8 {[%emt 0:00:02]} 23. Rd1 {[%emt 0:01:43]} Be7 {[%emt 0:07:56]} 24. a5 {[%emt 0:03:27]} e5 {[%emt 0:04:07]} 25. Nd3 {[%emt 0:02:29]} Nd7 {[%emt 0:01:00]} 26. Nc5 {[%emt 0:16:39]} Nxc5 {[%emt 0:01:47]} 27. Bxc4+ {[%emt 0:00:09]} Ke8 {[%emt 0:04:05]} 28. Bd5 {[%emt 0:05:52]} b6 {[%emt 0:00:54]} 29. axb6 {[%emt 0:00:22]} Rb8 {[%emt 0:00:11]} 30. Be3 {[%emt 0:00:18]} Rxb6 {[%emt 0:03:38]} 31. Rc1 {[%emt 0:00:07]} 1-0

[Event "25th Abu Dhabi Master 2018"]
[Site "Abu Dhabi"]
[Date "2018.08.08"]
[Round "2"]
[White "Kadric, Denis"]
[Black "Sharma, Dinesh Kumar"]
[Result "1/2-1/2"]
[ECO "C24"]
[WhiteElo "2537"]
[BlackElo "2275"]
[Annotator "ChessBase"]
[PlyCount "83"]
[EventDate "2018.08.05"]
[EventType "swiss"]
[EventCountry "UAE"]
[SourceTitle "playchess.com"]
[Source "ChessBase"]
[SourceQuality "1"]
[TimeControl "5400+30"]

1. e4 {[%emt 0:00:00]} e5 {[%emt 0:00:16]} 2. Bc4 {[%emt 0:00:00]} Nf6 {[%emt 0:00:26]} 3. d3 {[%emt 0:00:00]} c6 {[%emt 0:00:34]} 4. Nf3 {[%emt 0:00:00]} d5 {[%emt 0:00:47]} 5. Bb3 {[%emt 0:00:00]} a5 {[%emt 0:01:10]} 6. a4 {[%emt 0:00:00]} Bb4+ {[%emt 0:00:27]} 7. c3 {[%emt 0:00:00]} Bd6 {[%emt 0:00:36]} 8. exd5 {[%emt 0:00:05]} cxd5 {[%emt 0:02:13]} 9. O-O {[%emt 0:00:03]} O-O {[%emt 0:01:10]} 10. Bg5 {[%emt 0:00:03]} Be6 {[%emt 0:00:42]} 11. Na3 {[%emt 0:00:23]} Nbd7 {[%emt 0:01:53]} 12. Nb5 {[%emt 0:00:16]} Bb8 {[%emt 0:00:06]} 13. Re1 {[%emt 0:00:18]} Re8 {[%emt 0:01:00]} 14. Bh4 {[%emt 0:01:42]} h6 {[%emt 0:06:18]} 15. h3 {[%emt 0:01:45]} Ra6 {[%emt 0:03:55]} 16. Bg3 {[%emt 0:05:33]} Bf5 {[%emt 0:01:31]} 17. d4 {[%emt 0:03:59]} e4 {[%emt 0:02:30]} 18. Bxb8 {[%emt 0:01:07]} Qxb8 {[%emt 0:00:33]} 19. Nh2 {[%emt 0:00:22]} Rae6 {[%emt 0:08:22]} 20. Nf1 {[%emt 0:00:24]} R6e7 {[%emt 0:06:29]} 21. Ne3 {[%emt 0:01:23]} Be6 {[%emt 0:00:19]} 22. Ba2 {[%emt 0:05:56]} Nb6 {[%emt 0:06:24]} 23. b3 {[%emt 0:00:43]} Nc8 {[%emt 0:00:23]} 24. c4 {[%emt 0:00:31]} Nd6 {[%emt 0:01:30]} 25. c5 {[%emt 0:07:05]} Nxb5 {[%emt 0:02:17]} 26. axb5 {[%emt 0:00:02]} b6 {[%emt 0:00:01]} 27. c6 {[%emt 0:00:06]} Qd6 {[%emt 0:00:24]} 28. Qd2 {[%emt 0:00:35]} Nh7 {[%emt 0:00:36]} 29. b4 {[%emt 0:00:52]} a4 {[%emt 0:00:57]} 30. Rac1 {[%emt 0:14:20]} Rc7 {[%emt 0:02:36]} 31. f3 {[%emt 0:00:39]} Nf6 {[%emt 0:01:28]} 32. Rf1 {[%emt 0:00:05]} exf3 {[%emt 0:00:59]} 33. Rxf3 {[%emt 0:00:03]} Ne4 {[%emt 0:00:22]} 34. Qd3 {[%emt 0:01:14]} Ng5 {[%emt 0:01:11]} 35. Rcf1 {[%emt 0:01:18]} Nxf3+ {[%emt 0:03:57]} 36. Rxf3 {[%emt 0:00:03]} Rce7 {[%emt 0:03:05]} 37. Qd2 {[%emt 0:06:21]} g6 {[%emt 0:09:27]} 38. Rf6 {[%emt 0:02:53]} Qg3 {[%emt 0:12:59]} 39. Rf3 {[%emt 0:00:16]} Qd6 {[%emt 0:01:35]} 40. Rf6 {[%emt 0:00:03]} Qg3 {[%emt 0:00:12]} 41. Rf3 {[%emt 0:00:03]} Qd6 {[%emt 0:04:26]} 42. Rf6 {[%emt 0:00:25]} 1/2-1/2

[Event "25th Abu Dhabi Master 2018"]
[Site "Abu Dhabi"]
[Date "2018.08.08"]
[Round "2"]
[White "Puranik, Abhimanyu Sameer"]
[Black "Pranav, Vijay"]
[Result "1-0"]
[ECO "C72"]
[WhiteElo "2514"]
[BlackElo "2265"]
[Annotator "ChessBase"]
[PlyCount "68"]
[EventDate "2018.08.05"]
[EventType "swiss"]
[EventCountry "UAE"]
[SourceTitle "playchess.com"]
[Source "ChessBase"]
[SourceQuality "1"]
[TimeControl "5400+30"]

1. e4 {[%emt 0:00:00]} e5 {[%emt 0:00:00]} 2. Nf3 {[%emt 0:00:00]} Nc6 {[%emt 0:00:00]} 3. Bb5 {[%emt 0:00:00]} a6 {[%emt 0:00:06]} 4. Ba4 {[%emt 0:00:00]} d6 {[%emt 0:00:07]} 5. O-O {[%emt 0:00:01]} Bd7 {[%emt 0:00:05]} 6. d4 {[%emt 0:00:29]} exd4 7. Nxd4 {[%emt 0:00:19]} b5 {[%emt 0:01:25]} 8. Nxc6 Bxc6 {[%emt 0:00:05]} 9. Bb3 {[%emt 0:00:07]} Nf6 {[%emt 0:00:22]} 10. c4 {[%emt 0:00:08]} Be7 {[%emt 0:01:36]} 11. Nc3 {[%emt 0:00:11]} O-O {[%emt 0:01:18]} 12. Re1 {[%emt 0:00:11]} b4 {[%emt 0:04:06]} 13. Nd5 {[%emt 0:01:26]} a5 {[%emt 0:01:58]} 14. Ba4 {[%emt 0:15:04]} Bxa4 {[%emt 0:02:23]} 15. Qxa4 {[%emt 0:08:55]} Nxd5 {[%emt 0:01:49]} 16. cxd5 {[%emt 0:00:04]} Bf6 {[%emt 0:01:10]} 17. Rb1 {[%emt 0:04:33]} Re8 {[%emt 0:04:11]} 18. a3 {[%emt 0:07:19]} bxa3 {[%emt 0:14:27]} 19. bxa3 {[%emt 0:01:47]} Bc3 {[%emt 0:00:29]} 20. Re2 {[%emt 0:05:04]} f5 {[%emt 0:02:40]} 21. Qc4 {[%emt 0:05:32]} Qf6 {[%emt 0:00:26]} 22. Rb7 {[%emt 0:08:57]} Rxe4 {[%emt 0:02:51]} 23. Rxe4 {[%emt 0:01:29]} fxe4 {[%emt 0:00:02]} 24. Be3 {[%emt 0:00:42]} Rf8 {[%emt 0:01:48]} 25. Rxc7 {[%emt 0:04:00]} Be5 {[%emt 0:02:16]} 26. Qxe4 {[%emt 0:01:19]} Rb8 {[%emt 0:00:38]} 27. f4 {[%emt 0:04:58]} Qh4 {[%emt 0:01:37]} 28. g3 {[%emt 0:08:27]} Qg4 {[%emt 0:00:05]} 29. Bf2 {[%emt 0:03:17]} g6 {[%emt 0:06:16]} 30. Kg2 {[%emt 0:07:16]} Bf6 {[%emt 0:03:24]} 31. Rc6 {[%emt 0:03:17]} Qd7 {[%emt 0:02:32]} 32. Qe6+ {[%emt 0:00:28]} Qxe6 {[%emt 0:00:07]} 33. dxe6 {[%emt 0:00:03]} Be7 {[%emt 0:04:21]} 34. Rc7 {[%emt 0:00:44]} Re8 {[%emt 0:00:03]} 1-0